[Event "Titled Tuesday Blitz March 22 Late 2022"]
[White "Babazada, Khazar"]
[Black "Paszewski, Mateusz"]
[WhiteFideId "13413554"]
[BlackFideId "1141058"]
[WhiteElo "2418"]
[BlackElo "2102"]
[Result "1-0"]
[Round "07"]
[TimeControl "180+1"]
[Date "2022.03.22"]
[WhiteClock "0:01:02"]
[BlackClock "0:00:04"]

1. Nf3 {[%clk 0:03:00]}  d5 {[%clk 0:02:59]} 2. b3 {[%clk 0:03:01]}  Bf5 {[%clk 0:02:59]} 3. Bb2 {[%clk 0:03:01]}  e6 {[%clk 0:02:59]} 4. d3 {[%clk 0:03:00]}  h6 {[%clk 0:02:57]} 5. Nbd2 {[%clk 0:03:01]}  Nf6 {[%clk 0:02:57]} 6. g3 {[%clk 0:03:01]}  Be7 {[%clk 0:02:54]} 7. Bg2 {[%clk 0:03:02]}  O-O {[%clk 0:02:55]} 8. O-O {[%clk 0:03:01]}  c6 {[%clk 0:02:54]} 9. Re1 {[%clk 0:03:01]}  Bh7 {[%clk 0:02:52]} 10. e4 {[%clk 0:03:02]}  a5 {[%clk 0:02:52]} 11. a3 {[%clk 0:02:59]}  Nbd7 {[%clk 0:02:50]} 12. Qe2 {[%clk 0:03:00]}  b5 {[%clk 0:02:42]} 13. Nd4 {[%clk 0:02:53]}  Qb6 {[%clk 0:02:38]} 14. e5 {[%clk 0:02:41]}  Ne8 {[%clk 0:02:37]} 15. f4 {[%clk 0:02:39]}  a4 {[%clk 0:02:14]} 16. Kh1 {[%clk 0:02:32]}  Nc7 {[%clk 0:02:09]} 17. b4 {[%clk 0:02:28]}  c5 {[%clk 0:02:08]} 18. bxc5 {[%clk 0:02:28]}  Bxc5 {[%clk 0:02:05]} 19. N2f3 {[%clk 0:02:28]}  b4 {[%clk 0:02:01]} 20. axb4 {[%clk 0:02:27]}  Bxb4 {[%clk 0:02:00]} 21. Reb1 {[%clk 0:02:26]}  Qc5 {[%clk 0:01:52]} 22. c3 {[%clk 0:02:27]}  Bxc3 {[%clk 0:01:15]} 23. Rc1 {[%clk 0:02:27]}  Bxd4 {[%clk 0:01:07]} 24. Rxc5 {[%clk 0:02:24]}  Bxc5 {[%clk 0:01:06]} 25. g4 {[%clk 0:02:02]}  a3 {[%clk 0:01:05]} 26. Bc1 {[%clk 0:02:02]}  Rfb8 {[%clk 0:00:55]} 27. Bh3 {[%clk 0:01:57]}  Nb5 {[%clk 0:00:48]} 28. f5 {[%clk 0:01:56]}  Rb6 {[%clk 0:00:36]} 29. g5 {[%clk 0:01:51]}  Bxf5 {[%clk 0:00:26]} 30. Bxf5 {[%clk 0:01:51]}  exf5 {[%clk 0:00:26]} 31. gxh6 {[%clk 0:01:52]}  g6 {[%clk 0:00:17]} 32. Ng5 {[%clk 0:01:48]}  Nf8 {[%clk 0:00:13]} 33. Qg2 {[%clk 0:01:40]}  Nc3 {[%clk 0:00:08]} 34. h4 {[%clk 0:01:27]}  a2 {[%clk 0:00:08]} 35. Qc2 {[%clk 0:01:23]}  d4 {[%clk 0:00:07]} 36. Kg2 {[%clk 0:01:04]}  Rb1 {[%clk 0:00:06]} 37. Bb2 {[%clk 0:01:04]}  Rxa1 {[%clk 0:00:04]} 38. Bxa1 {[%clk 0:01:04]}  Bb4 {[%clk 0:00:04]} 39. Qb3 {[%clk 0:01:02]} 1-0


[Site "https://www.chess.com"]

[Event "Titled Tuesday Blitz March 22 Late 2022"]
[White "Barp, Alberto"]
[Black "Kovanova, Baira"]
[WhiteFideId "872555"]
[BlackFideId "4164083"]
[WhiteElo "2229"]
[BlackElo "2190"]
[Result "0-1"]
[Round "07"]
[TimeControl "180+1"]
[Date "2022.03.22"]
[WhiteClock "0:00:10"]
[BlackClock "0:00:09"]

1. d4 {[%clk 0:03:00]}  Nf6 {[%clk 0:02:59]} 2. Bg5 {[%clk 0:02:59]}  d5 {[%clk 0:02:58]} 3. Bxf6 {[%clk 0:02:58]}  exf6 {[%clk 0:02:58]} 4. e3 {[%clk 0:02:59]}  Be6 {[%clk 0:02:59]} 5. Nd2 {[%clk 0:02:55]}  Nd7 {[%clk 0:02:54]} 6. c4 {[%clk 0:02:55]}  c6 {[%clk 0:02:52]} 7. Ne2 {[%clk 0:02:53]}  Bd6 {[%clk 0:02:52]} 8. cxd5 {[%clk 0:02:53]}  cxd5 {[%clk 0:02:52]} 9. Nc3 {[%clk 0:02:53]}  f5 {[%clk 0:02:51]} 10. g3 {[%clk 0:02:53]}  O-O {[%clk 0:02:50]} 11. Bg2 {[%clk 0:02:53]}  Nf6 {[%clk 0:02:51]} 12. O-O {[%clk 0:02:51]}  Ne4 {[%clk 0:02:51]} 13. Rc1 {[%clk 0:02:51]}  Rc8 {[%clk 0:02:49]} 14. f3 {[%clk 0:02:48]}  Nxc3 {[%clk 0:02:44]} 15. Rxc3 {[%clk 0:02:49]}  Rxc3 {[%clk 0:02:43]} 16. bxc3 {[%clk 0:02:50]}  Qc8 {[%clk 0:02:41]} 17. Qb3 {[%clk 0:02:50]}  Qc7 {[%clk 0:02:36]} 18. Rc1 {[%clk 0:02:49]}  Rc8 {[%clk 0:02:36]} 19. f4 {[%clk 0:02:47]}  Rd8 {[%clk 0:02:19]} 20. Nf3 {[%clk 0:02:27]}  g6 {[%clk 0:02:18]} 21. Ne1 {[%clk 0:02:26]}  b6 {[%clk 0:02:12]} 22. Nd3 {[%clk 0:02:26]}  Rc8 {[%clk 0:02:12]} 23. Bxd5 {[%clk 0:02:21]}  Bxd5 {[%clk 0:01:58]} 24. Qxd5 {[%clk 0:02:22]}  Qe7 {[%clk 0:01:50]} 25. Kf2 {[%clk 0:02:20]}  Rd8 {[%clk 0:01:44]} 26. Qf3 {[%clk 0:02:15]}  h5 {[%clk 0:01:44]} 27. c4 {[%clk 0:02:12]}  h4 {[%clk 0:01:35]} 28. Rc2 {[%clk 0:02:07]}  Kg7 {[%clk 0:01:35]} 29. Kg2 {[%clk 0:01:57]}  Re8 {[%clk 0:01:33]} 30. Re2 {[%clk 0:01:54]}  Qc7 {[%clk 0:01:28]} 31. Rc2 {[%clk 0:01:48]}  Qe7 {[%clk 0:01:28]} 32. Kf2 {[%clk 0:01:48]}  Rh8 {[%clk 0:01:28]} 33. Kg1 {[%clk 0:01:43]}  Re8 {[%clk 0:01:26]} 34. Re2 {[%clk 0:00:43]}  Qc7 {[%clk 0:01:25]} 35. Qd5 {[%clk 0:00:43]}  Rd8 {[%clk 0:01:14]} 36. Qb5 {[%clk 0:00:42]}  Rc8 {[%clk 0:01:10]} 37. Rc2 {[%clk 0:00:25]}  Qe7 {[%clk 0:01:09]} 38. Kf2 {[%clk 0:00:22]}  Rh8 {[%clk 0:01:05]} 39. g4 {[%clk 0:00:14]}  fxg4 {[%clk 0:00:55]} 40. c5 {[%clk 0:00:14]}  g3+ {[%clk 0:00:43]} 41. hxg3 {[%clk 0:00:14]}  hxg3+ {[%clk 0:00:43]} 42. Kxg3 {[%clk 0:00:15]}  Qxe3+ {[%clk 0:00:40]} 43. Kg2 {[%clk 0:00:12]}  Qe4+ {[%clk 0:00:34]} 44. Kg3 {[%clk 0:00:12]}  Bxf4+ {[%clk 0:00:33]} 45. Nxf4 {[%clk 0:00:12]}  Qxc2 {[%clk 0:00:31]} 46. Qd7 {[%clk 0:00:12]}  Qh2+ {[%clk 0:00:19]} 47. Kf3 {[%clk 0:00:11]}  Qh1+ {[%clk 0:00:18]} 48. Kg3 {[%clk 0:00:09]}  Qg1+ {[%clk 0:00:18]} 49. Kf3 {[%clk 0:00:09]}  Qf1+ {[%clk 0:00:18]} 50. Kg3 {[%clk 0:00:10]}  Qe1+ {[%clk 0:00:16]} 51. Kf3 {[%clk 0:00:10]}  Rh1 {[%clk 0:00:14]} 52. Ne6+ {[%clk 0:00:09]}  Qxe6 {[%clk 0:00:14]} 53. Qb7 {[%clk 0:00:08]}  Rf1+ {[%clk 0:00:11]} 54. Kg2 {[%clk 0:00:08]}  Qe2+ {[%clk 0:00:11]} 55. Kg3 {[%clk 0:00:09]}  Rg1+ {[%clk 0:00:11]} 56. Kf4 {[%clk 0:00:10]}  g5+ {[%clk 0:00:10]} 57. Kf5 {[%clk 0:00:10]}  Qe6# {[%clk 0:00:09]} 0-1


[Site "https://www.chess.com"]

[Event "Titled Tuesday Blitz March 22 Late 2022"]
[White "Bashirli, Nail"]
[Black "Dobrov, Vladimir"]
[WhiteFideId "13406809"]
[BlackFideId "4136594"]
[WhiteElo "2333"]
[BlackElo "2614"]
[Result "0-1"]
[Round "07"]
[TimeControl "180+1"]
[Date "2022.03.22"]
[WhiteClock "0:00:06"]
[BlackClock "0:01:44"]

1. e4 {[%clk 0:03:00]}  c5 {[%clk 0:02:59]} 2. Nf3 {[%clk 0:03:00]}  Nc6 {[%clk 0:02:59]} 3. d4 {[%clk 0:03:01]}  cxd4 {[%clk 0:03:00]} 4. Nxd4 {[%clk 0:03:01]}  Qb6 {[%clk 0:03:00]} 5. Nb3 {[%clk 0:03:00]}  Nf6 {[%clk 0:03:00]} 6. Nc3 {[%clk 0:03:01]}  e6 {[%clk 0:03:01]} 7. Be3 {[%clk 0:03:01]}  Qc7 {[%clk 0:03:01]} 8. Bd3 {[%clk 0:03:01]}  h5 {[%clk 0:03:00]} 9. h3 {[%clk 0:03:01]}  a6 {[%clk 0:03:01]} 10. Qe2 {[%clk 0:03:01]}  b5 {[%clk 0:03:01]} 11. O-O-O {[%clk 0:03:00]}  d6 {[%clk 0:02:55]} 12. f4 {[%clk 0:03:00]}  Bb7 {[%clk 0:02:53]} 13. f5 {[%clk 0:03:00]}  Ne5 {[%clk 0:02:48]} 14. fxe6 {[%clk 0:02:57]}  fxe6 {[%clk 0:02:48]} 15. Nd4 {[%clk 0:02:58]}  Qd7 {[%clk 0:02:44]} 16. Rhf1 {[%clk 0:02:53]}  Rc8 {[%clk 0:02:43]} 17. Bg5 {[%clk 0:02:49]}  Be7 {[%clk 0:02:39]} 18. Nf3 {[%clk 0:02:30]}  Nf7 {[%clk 0:02:31]} 19. Qe3 {[%clk 0:01:51]}  Qc7 {[%clk 0:02:23]} 20. Nd4 {[%clk 0:01:39]}  Qd7 {[%clk 0:02:12]} 21. Nf3 {[%clk 0:01:26]}  Rc5 {[%clk 0:02:10]} 22. e5 {[%clk 0:01:13]}  Bxf3 {[%clk 0:02:04]} 23. Qxf3 {[%clk 0:00:20]}  Nxe5 {[%clk 0:01:59]} 24. Qe3 {[%clk 0:00:15]}  Nfg4 {[%clk 0:01:48]} 25. Qxc5 {[%clk 0:00:06]}  Bxg5+ {[%clk 0:01:44]} 0-1


[Site "https://www.chess.com"]

[Event "Titled Tuesday Blitz March 22 Late 2022"]
[White "Bluebaum, Matthias"]
[Black "Mikhailov, Viacheslav"]
[WhiteFideId "24651516"]
[BlackFideId "4187369"]
[WhiteElo "2550"]
[BlackElo "2381"]
[Result "1-0"]
[Round "07"]
[TimeControl "180+1"]
[Date "2022.03.22"]
[WhiteClock "0:00:33"]
[BlackClock "0:00:14"]

1. b3 {[%clk 0:03:00]}  Nf6 {[%clk 0:02:49]} 2. Bb2 {[%clk 0:03:00]}  g6 {[%clk 0:02:50]} 3. Nf3 {[%clk 0:03:01]}  Bg7 {[%clk 0:02:50]} 4. g3 {[%clk 0:03:01]}  O-O {[%clk 0:02:50]} 5. Bg2 {[%clk 0:03:02]}  d6 {[%clk 0:02:51]} 6. d4 {[%clk 0:03:02]}  c5 {[%clk 0:02:51]} 7. O-O {[%clk 0:03:00]}  Nc6 {[%clk 0:02:51]} 8. c4 {[%clk 0:02:58]}  cxd4 {[%clk 0:02:51]} 9. Nxd4 {[%clk 0:02:59]}  Bd7 {[%clk 0:02:52]} 10. Nc2 {[%clk 0:02:59]}  Rc8 {[%clk 0:02:52]} 11. Nc3 {[%clk 0:02:58]}  a6 {[%clk 0:02:52]} 12. Rc1 {[%clk 0:02:58]}  Qa5 {[%clk 0:02:52]} 13. Qd2 {[%clk 0:02:49]}  Qh5 {[%clk 0:02:52]} 14. Ne3 {[%clk 0:02:46]}  Bh3 {[%clk 0:02:41]} 15. Bf3 {[%clk 0:02:47]}  Qa5 {[%clk 0:02:28]} 16. Rfd1 {[%clk 0:02:47]}  Bh6 {[%clk 0:02:28]} 17. Bxc6 {[%clk 0:02:09]}  bxc6 {[%clk 0:02:24]} 18. Ncd5 {[%clk 0:02:09]}  Qxd2 {[%clk 0:02:02]} 19. Nxe7+ {[%clk 0:02:08]}  Kg7 {[%clk 0:02:02]} 20. Rxd2 {[%clk 0:02:09]}  Rce8 {[%clk 0:01:50]} 21. Rxd6 {[%clk 0:02:03]}  Bg5 {[%clk 0:01:40]} 22. Nxc6 {[%clk 0:01:40]}  Rxe3 {[%clk 0:01:23]} 23. Bxf6+ {[%clk 0:01:39]}  Bxf6 {[%clk 0:01:23]} 24. fxe3 {[%clk 0:01:39]}  Bg5 {[%clk 0:01:23]} 25. Kf2 {[%clk 0:01:35]}  Re8 {[%clk 0:01:24]} 26. Rc3 {[%clk 0:01:35]}  h5 {[%clk 0:01:20]} 27. c5 {[%clk 0:01:33]}  h4 {[%clk 0:01:19]} 28. Nd4 {[%clk 0:01:33]}  hxg3+ {[%clk 0:01:04]} 29. hxg3 {[%clk 0:01:34]}  Bg4 {[%clk 0:00:45]} 30. c6 {[%clk 0:01:22]}  Rh8 {[%clk 0:00:44]} 31. c7 {[%clk 0:01:20]}  Be7 {[%clk 0:00:36]} 32. Re6 {[%clk 0:00:46]}  fxe6 {[%clk 0:00:27]} 33. c8=Q {[%clk 0:00:47]}  Rxc8 {[%clk 0:00:27]} 34. Rxc8 {[%clk 0:00:48]}  e5 {[%clk 0:00:24]} 35. Rc7 {[%clk 0:00:48]}  Kf8 {[%clk 0:00:18]} 36. Nf3 {[%clk 0:00:45]}  e4 {[%clk 0:00:16]} 37. Ne5 {[%clk 0:00:45]}  Bd6 {[%clk 0:00:17]} 38. Nxg6+ {[%clk 0:00:34]}  Ke8 {[%clk 0:00:16]} 39. Ra7 {[%clk 0:00:34]}  Bc8 {[%clk 0:00:14]} 40. Nf4 {[%clk 0:00:34]}  Bc5 {[%clk 0:00:14]} 41. Rc7 {[%clk 0:00:33]} 1-0


[Site "https://www.chess.com"]

[Event "Titled Tuesday Blitz March 22 Late 2022"]
[White "Borodavkin, Anatoly"]
[Black "P., Komal Kishore"]
[WhiteFideId "14150662"]
[BlackFideId "5016703"]
[WhiteElo "1845"]
[BlackElo "2073"]
[Result "0-1"]
[Round "07"]
[TimeControl "180+1"]
[Date "2022.03.22"]
[WhiteClock "0:00:01"]
[BlackClock "0:00:02"]

1. e4 {[%clk 0:03:00]}  c6 {[%clk 0:02:49]} 2. d4 {[%clk 0:03:00]}  d5 {[%clk 0:02:47]} 3. exd5 {[%clk 0:03:00]}  cxd5 {[%clk 0:02:46]} 4. Bd3 {[%clk 0:03:01]}  Nc6 {[%clk 0:02:47]} 5. c3 {[%clk 0:03:00]}  Nf6 {[%clk 0:02:47]} 6. Ne2 {[%clk 0:03:00]}  Bg4 {[%clk 0:02:46]} 7. O-O {[%clk 0:02:59]}  e6 {[%clk 0:02:46]} 8. Qe1 {[%clk 0:02:58]}  Bd6 {[%clk 0:02:44]} 9. h3 {[%clk 0:02:55]}  Bh5 {[%clk 0:02:43]} 10. Nf4 {[%clk 0:02:52]}  Bxf4 {[%clk 0:02:39]} 11. Bxf4 {[%clk 0:02:51]}  Bg6 {[%clk 0:02:40]} 12. Qe2 {[%clk 0:02:47]}  Qb6 {[%clk 0:02:38]} 13. Re1 {[%clk 0:02:19]}  Bxd3 {[%clk 0:02:30]} 14. Qxd3 {[%clk 0:02:19]}  Qxb2 {[%clk 0:02:30]} 15. Nd2 {[%clk 0:02:19]}  Qa3 {[%clk 0:02:15]} 16. Nf3 {[%clk 0:01:48]}  O-O {[%clk 0:02:13]} 17. Ne5 {[%clk 0:01:41]}  Nxe5 {[%clk 0:02:09]} 18. dxe5 {[%clk 0:01:35]}  Ne4 {[%clk 0:02:07]} 19. Rec1 {[%clk 0:01:10]}  Qb2 {[%clk 0:01:50]} 20. f3 {[%clk 0:00:48]}  Qf2+ {[%clk 0:01:44]} 21. Kh2 {[%clk 0:00:45]}  Nc5 {[%clk 0:01:39]} 22. Qd1 {[%clk 0:00:20]}  b5 {[%clk 0:01:27]} 23. Rc2 {[%clk 0:00:18]}  Qh4 {[%clk 0:01:25]} 24. Bg3 {[%clk 0:00:16]}  Qe7 {[%clk 0:01:20]} 25. Qd4 {[%clk 0:00:15]}  Rfc8 {[%clk 0:01:19]} 26. Rb1 {[%clk 0:00:14]}  Rab8 {[%clk 0:01:16]} 27. Bh4 {[%clk 0:00:14]}  Qc7 {[%clk 0:01:10]} 28. f4 {[%clk 0:00:10]}  Ne4 {[%clk 0:01:04]} 29. Qd1 {[%clk 0:00:09]}  Nxc3 {[%clk 0:00:59]} 30. Qg4 {[%clk 0:00:09]}  Qc5 {[%clk 0:00:35]} 31. Bf6 {[%clk 0:00:07]}  g6 {[%clk 0:00:34]} 32. Rxc3 {[%clk 0:00:07]}  Qxc3 {[%clk 0:00:28]} 33. Qh4 {[%clk 0:00:07]}  Qc5 {[%clk 0:00:22]} 34. Be7 {[%clk 0:00:07]}  Qc2 {[%clk 0:00:17]} 35. Qh6 {[%clk 0:00:04]}  f5 {[%clk 0:00:09]} 36. Bf6 {[%clk 0:00:02]}  Rb7 {[%clk 0:00:07]} 37. Rg1 {[%clk 0:00:01]}  Qf2 {[%clk 0:00:06]} 38. h4 {[%clk 0:00:01]}  d4 {[%clk 0:00:04]} 39. h5 {[%clk 0:00:02]}  d3 {[%clk 0:00:03]} 40. hxg6 {[%clk 0:00:02]}  hxg6 {[%clk 0:00:02]} 41. Qxg6+ {[%clk 0:00:02]}  Kf8 {[%clk 0:00:02]} 42. Qh6+ {[%clk 0:00:02]}  Ke8 {[%clk 0:00:01]} 43. Qh8+ {[%clk 0:00:01]}  Kd7 {[%clk 0:00:02]} 44. Qh7+ {[%clk 0:00:01]}  Kc6 {[%clk 0:00:02]} 45. Qh6 {[%clk 0:00:01]}  Kd5 {[%clk 0:00:02]} 0-1


[Site "https://www.chess.com"]

[Event "Titled Tuesday Blitz March 22 Late 2022"]
[White "Boyer, Mahel"]
[Black "Maghsoodloo, Parham"]
[WhiteFideId "45102422"]
[BlackFideId "12539929"]
[WhiteElo "2328"]
[BlackElo "2630"]
[Result "0-1"]
[Round "07"]
[TimeControl "180+1"]
[Date "2022.03.22"]
[WhiteClock "0:00:01"]
[BlackClock "0:00:09"]

1. e4 {[%clk 0:03:00]}  e6 {[%clk 0:02:58]} 2. d3 {[%clk 0:02:54]}  d5 {[%clk 0:02:58]} 3. c3 {[%clk 0:02:54]}  dxe4 {[%clk 0:02:58]} 4. dxe4 {[%clk 0:02:54]}  Qxd1+ {[%clk 0:02:58]} 5. Kxd1 {[%clk 0:02:55]}  e5 {[%clk 0:02:59]} 6. Nd2 {[%clk 0:02:49]}  Bc5 {[%clk 0:02:59]} 7. f3 {[%clk 0:02:49]}  f6 {[%clk 0:02:58]} 8. b4 {[%clk 0:02:49]}  Bf8 {[%clk 0:02:57]} 9. Nc4 {[%clk 0:02:42]}  Be6 {[%clk 0:02:56]} 10. Kc2 {[%clk 0:02:42]}  Nd7 {[%clk 0:02:54]} 11. a4 {[%clk 0:02:42]}  h5 {[%clk 0:02:49]} 12. Be3 {[%clk 0:02:32]}  g6 {[%clk 0:02:46]} 13. Na5 {[%clk 0:02:08]}  b6 {[%clk 0:02:34]} 14. Bc4 {[%clk 0:01:44]}  Bxc4 {[%clk 0:02:28]} 15. Nxc4 {[%clk 0:01:43]}  Bh6 {[%clk 0:02:25]} 16. Bf2 {[%clk 0:01:40]}  Ne7 {[%clk 0:02:25]} 17. Ne2 {[%clk 0:01:40]}  a6 {[%clk 0:02:24]} 18. Rhd1 {[%clk 0:01:35]}  O-O-O {[%clk 0:02:24]} 19. b5 {[%clk 0:01:28]}  a5 {[%clk 0:02:24]} 20. Rd3 {[%clk 0:01:21]}  Nb8 {[%clk 0:02:18]} 21. Rad1 {[%clk 0:01:21]}  Rxd3 {[%clk 0:02:18]} 22. Rxd3 {[%clk 0:01:22]}  Nd7 {[%clk 0:02:17]} 23. Nb2 {[%clk 0:00:57]}  Bf8 {[%clk 0:02:14]} 24. Rd1 {[%clk 0:00:41]}  Ng8 {[%clk 0:02:00]} 25. Nd3 {[%clk 0:00:24]}  Nh6 {[%clk 0:01:59]} 26. c4 {[%clk 0:00:23]}  Nf7 {[%clk 0:01:59]} 27. Nc3 {[%clk 0:00:21]}  Nd8 {[%clk 0:01:59]} 28. c5 {[%clk 0:00:17]}  bxc5 {[%clk 0:01:58]} 29. Nb2 {[%clk 0:00:15]}  Nb6 {[%clk 0:01:47]} 30. Nd5 {[%clk 0:00:15]}  Nxd5 {[%clk 0:01:47]} 31. Rxd5 {[%clk 0:00:15]}  Nb7 {[%clk 0:01:43]} 32. Nd3 {[%clk 0:00:15]}  Bd6 {[%clk 0:01:12]} 33. Nxc5 {[%clk 0:00:15]}  Bxc5 {[%clk 0:01:12]} 34. Bxc5 {[%clk 0:00:16]}  Re8 {[%clk 0:01:11]} 35. Ba3 {[%clk 0:00:14]}  Re6 {[%clk 0:01:11]} 36. Rd3 {[%clk 0:00:10]}  Nd8 {[%clk 0:01:05]} 37. Kc3 {[%clk 0:00:08]}  Re8 {[%clk 0:01:04]} 38. Kc4 {[%clk 0:00:08]}  Ne6 {[%clk 0:01:04]} 39. Bc5 {[%clk 0:00:06]}  h4 {[%clk 0:01:01]} 40. Be3 {[%clk 0:00:06]}  f5 {[%clk 0:01:00]} 41. Bd2 {[%clk 0:00:06]}  Kb7 {[%clk 0:00:48]} 42. Bxa5 {[%clk 0:00:03]}  Ra8 {[%clk 0:00:48]} 43. Kb4 {[%clk 0:00:03]}  Nd4 {[%clk 0:00:40]} 44. Rc3 {[%clk 0:00:03]}  c6 {[%clk 0:00:38]} 45. h3 {[%clk 0:00:03]}  fxe4 {[%clk 0:00:19]} 46. fxe4 {[%clk 0:00:03]}  g5 {[%clk 0:00:20]} 47. Rc5 {[%clk 0:00:04]}  Re8 {[%clk 0:00:20]} 48. bxc6+ {[%clk 0:00:02]}  Nxc6+ {[%clk 0:00:21]} 49. Kc4 {[%clk 0:00:03]}  Ra8 {[%clk 0:00:20]} 50. Bc3 {[%clk 0:00:02]}  Rxa4+ {[%clk 0:00:20]} 51. Kb5 {[%clk 0:00:03]}  Ra6 {[%clk 0:00:16]} 52. Kc4 {[%clk 0:00:03]}  Ra2 {[%clk 0:00:15]} 53. Rb5+ {[%clk 0:00:03]}  Ka6 {[%clk 0:00:16]} 54. Rc5 {[%clk 0:00:03]}  Kb6 {[%clk 0:00:16]} 55. Kd5 {[%clk 0:00:03]}  Ne7+ {[%clk 0:00:14]} 56. Kd6 {[%clk 0:00:03]}  Ng6 {[%clk 0:00:15]} 57. Bxe5 {[%clk 0:00:03]}  Rxg2 {[%clk 0:00:13]} 58. Bf6 {[%clk 0:00:03]}  g4 {[%clk 0:00:14]} 59. hxg4 {[%clk 0:00:03]}  h3 {[%clk 0:00:14]} 60. Rh5 {[%clk 0:00:02]}  h2 {[%clk 0:00:15]} 61. Be5 {[%clk 0:00:03]}  Rd2+ {[%clk 0:00:10]} 62. Ke6 {[%clk 0:00:03]}  Nxe5 {[%clk 0:00:07]} 63. Kxe5 {[%clk 0:00:03]}  Kc6 {[%clk 0:00:08]} 64. Rh6+ {[%clk 0:00:03]}  Kd7 {[%clk 0:00:08]} 65. g5 {[%clk 0:00:04]}  Ke7 {[%clk 0:00:08]} 66. Rh7+ {[%clk 0:00:04]}  Kf8 {[%clk 0:00:09]} 67. Kf6 {[%clk 0:00:04]}  Kg8 {[%clk 0:00:07]} 68. g6 {[%clk 0:00:04]}  Rf2+ {[%clk 0:00:07]} 69. Ke6 {[%clk 0:00:05]}  Rg2 {[%clk 0:00:08]} 70. Rh6 {[%clk 0:00:03]}  Kg7 {[%clk 0:00:08]} 71. Rh3 {[%clk 0:00:04]}  Rxg6+ {[%clk 0:00:08]} 72. Kf5 {[%clk 0:00:05]}  Rh6 {[%clk 0:00:09]} 73. Rxh2 {[%clk 0:00:01]}  Rxh2 {[%clk 0:00:09]} 0-1


[Site "https://www.chess.com"]

[Event "Titled Tuesday Blitz March 22 Late 2022"]
[White "Burke, Paul"]
[Black "Janturin, Artur"]
[WhiteFideId "2605767"]
[BlackFideId "4130022"]
[WhiteElo "1925"]
[BlackElo "2352"]
[Result "1/2-1/2"]
[Round "07"]
[TimeControl "180+1"]
[Date "2022.03.22"]
[WhiteClock "0:00:03"]
[BlackClock "0:00:22"]

1. e4 {[%clk 0:03:00]}  a6 {[%clk 0:02:58]} 2. d4 {[%clk 0:02:59]}  b5 {[%clk 0:02:58]} 3. a3 {[%clk 0:02:58]}  Bb7 {[%clk 0:02:58]} 4. Nc3 {[%clk 0:02:58]}  e6 {[%clk 0:02:57]} 5. Bd3 {[%clk 0:02:58]}  c5 {[%clk 0:02:56]} 6. d5 {[%clk 0:02:55]}  Nf6 {[%clk 0:02:54]} 7. Bg5 {[%clk 0:02:50]}  h6 {[%clk 0:02:53]} 8. Bxf6 {[%clk 0:02:50]}  Qxf6 {[%clk 0:02:54]} 9. Nf3 {[%clk 0:02:47]}  c4 {[%clk 0:02:21]} 10. e5 {[%clk 0:02:40]}  Qd8 {[%clk 0:02:03]} 11. Be4 {[%clk 0:02:39]}  Qb6 {[%clk 0:01:54]} 12. O-O {[%clk 0:02:26]}  Bc5 {[%clk 0:01:45]} 13. Qe2 {[%clk 0:02:10]}  O-O {[%clk 0:01:29]} 14. dxe6 {[%clk 0:02:07]}  dxe6 {[%clk 0:01:27]} 15. Rad1 {[%clk 0:02:00]}  Nc6 {[%clk 0:01:25]} 16. Rd2 {[%clk 0:01:28]}  Rad8 {[%clk 0:01:20]} 17. Rfd1 {[%clk 0:01:28]}  Rxd2 {[%clk 0:01:18]} 18. Rxd2 {[%clk 0:01:27]}  Rd8 {[%clk 0:01:18]} 19. Rxd8+ {[%clk 0:01:26]}  Qxd8 {[%clk 0:01:09]} 20. h3 {[%clk 0:01:09]}  Qb6 {[%clk 0:01:06]} 21. Bxc6 {[%clk 0:00:36]}  Qxc6 {[%clk 0:01:00]} 22. Qd2 {[%clk 0:00:28]}  Qc7 {[%clk 0:00:50]} 23. Qe2 {[%clk 0:00:24]}  Be7 {[%clk 0:00:43]} 24. Ne4 {[%clk 0:00:20]}  Qc6 {[%clk 0:00:42]} 25. Nc3 {[%clk 0:00:19]}  g6 {[%clk 0:00:40]} 26. Qd2 {[%clk 0:00:16]}  Kg7 {[%clk 0:00:40]} 27. Qe3 {[%clk 0:00:15]}  Bc5 {[%clk 0:00:37]} 28. Qe2 {[%clk 0:00:15]}  Be7 {[%clk 0:00:31]} 29. Qd2 {[%clk 0:00:12]}  Qc7 {[%clk 0:00:18]} 30. Qe2 {[%clk 0:00:10]}  Bc6 {[%clk 0:00:17]} 31. Ne4 {[%clk 0:00:09]}  Qb7 {[%clk 0:00:17]} 32. Ned2 {[%clk 0:00:07]}  Bd5 {[%clk 0:00:16]} 33. c3 {[%clk 0:00:06]}  Bc6 {[%clk 0:00:16]} 34. Qe3 {[%clk 0:00:06]}  Qd7 {[%clk 0:00:16]} 35. Qf4 {[%clk 0:00:05]}  Qd5 {[%clk 0:00:16]} 36. Qd4 {[%clk 0:00:04]}  Bc5 {[%clk 0:00:15]} 37. Qxd5 {[%clk 0:00:04]}  Bxd5 {[%clk 0:00:15]} 38. Kf1 {[%clk 0:00:03]}  Kf8 {[%clk 0:00:15]} 39. Ke2 {[%clk 0:00:03]}  Ke7 {[%clk 0:00:16]} 40. Kf1 {[%clk 0:00:03]}  Bb7 {[%clk 0:00:16]} 41. Ke2 {[%clk 0:00:03]}  g5 {[%clk 0:00:16]} 42. Kf1 {[%clk 0:00:03]}  Be4 {[%clk 0:00:16]} 43. Nxe4 {[%clk 0:00:02]}  Bb6 {[%clk 0:00:15]} 44. Ke2 {[%clk 0:00:01]}  Bc7 {[%clk 0:00:15]} 45. Ned2 {[%clk 0:00:01]}  Bb6 {[%clk 0:00:15]} 46. Ne4 {[%clk 0:00:01]}  a5 {[%clk 0:00:16]} 47. Ned2 {[%clk 0:00:01]}  Bc7 {[%clk 0:00:17]} 48. Ne4 {[%clk 0:00:01]}  Bb6 {[%clk 0:00:18]} 49. Ned2 {[%clk 0:00:01]}  Bc7 {[%clk 0:00:19]} 50. Ne4 {[%clk 0:00:02]}  Bd8 {[%clk 0:00:19]} 51. Ned2 {[%clk 0:00:02]}  Bb6 {[%clk 0:00:20]} 52. Ne4 {[%clk 0:00:02]}  Ba7 {[%clk 0:00:20]} 53. Ned2 {[%clk 0:00:02]}  Bb6 {[%clk 0:00:21]} 54. Ne4 {[%clk 0:00:03]}  Ba7 {[%clk 0:00:21]} 55. Ned2 {[%clk 0:00:03]}  Bb6 {[%clk 0:00:22]} 1/2-1/2


[Site "https://www.chess.com"]